Workbook

Sheet Sygehus og Skanner
A1: CT undersøgelser på børn 0-17 år
A2: Sygehus- og Skanneroplysninger
A3: Sygehus
A4: Afdeling
A5: SOR-ID eller AFD-ID
A6: Rum-nr.
A7: SIS-registrerings nummer STG-xxxxxxxx
A8: Skannerproducent
A9: Model
A10: Maks. antal slices pr. rotation
A11: Detektorbredde (mm)
A12: Oplysninger om dosisreduktion
A13: Installationsår
A14: Kommentarer
A23: Dette dokument benyttes i forbindelse med indsamling og indsendelse af patientdoser på børn ved CT undersøgelser. Der skal udfyldes et exceldokument pr. røntgenrum. Vær opmærksom på der findes 2 indtastningsark til børn: konventionelle røntgenundersøgelser og CT-skanning. Information om hvordan patientdoser på børn måles kan findes i vejledning på SIS' hjemmeside www.sis.dk: Patientdosimetri ved røntgenundersøgelser af børn, 2022. NB: Projektmappen er beskyttet, således at der ikke kan slettes, indsættes eller omdøbes ark. Ligeledes er de enkelte ark beskyttet, således at der ikke kan ændres i oplysningerne i toppen af arket. Sundhedsstyrelsen, Strålebeskyttelse, April 2022

Sheet CT-cerebrum
A1: Cerebrum - blødning/infarkt, uden kontrast
A3: Protokoloplysninger
A4: kV (angiv begge ved dual-teknik) | E4: Antal skanfaser, udover oversigt(erne) | H4: Iterativ rekonstruktion (skriv gerne detaljer)
A5: Kontrast tracking | E5: CTDI kalibrering | H5: Snittykkelse (rekonstruktion)
A6: Aksial/Spiral | E6: Dosis-modulering (AEC) | H6: Rotationstid (s)
A7: Pitch | E7: Antal snit pr. rotation | H7: Skannet snittykkelse (mm)
A9: kV | B9: CTDIvol [mGy] | C9: DLP [mGy·cm] | D9: SSDE | E9: Højde [cm] | F9: Vægt [kg] | G9: Køn [K/M] | H9: Alder [år] | I9: Alder [måneder] | J9: Bemærkninger | M9: Referencedoser
M10: Alder | N10: CTDIvol [mGy] | O10: DLP [mGy·cm]
M11: [0-<3 måneder] | N11: 28 | O11: 403
M12: [3 måneder-<1 år] | N12: 27 | O12: 398
M13: [1-<6 år] | N13: 31 | O13: 516
M14: [>=6 år] | N14: 39 | O14: 679
A41: Kommentarer

Sheet CT-Thorax
A1: CT-skanning af thorax - Tumor, metastaser, med kontrast
A3: Protokoloplysninger
A4: kV (angiv begge ved dual-teknik) | E4: Antal skanfaser, udover oversigt(erne) | H4: Iterativ rekonstruktion (skriv gerne detaljer)
A5: Kontrast tracking | E5: CTDI kalibrering | H5: Snittykkelse (rekonstruktion)
A6: Aksial/Spiral | E6: Dosis-modulering (AEC) | H6: Rotationstid (s)
A7: Pitch | E7: Antal snit pr. rotation | H7: Skannet snittykkelse (mm)
A9: kV | B9: CTDIvol [mGy] | C9: DLP [mGy·cm] | D9: SSDE | E9: Højde [cm] | F9: Vægt [kg] | G9: Køn [K/M] | H9: Alder [år] | I9: Bemærkninger | L9: Referencedoser
L10: Vægt | M10: CTDIvol [mGy] | N10: DLP [mGy·cm]
L11: [5-<15 kg] | M11: 1.22 | N11: 25
L12: [15-<30kg] | M12: 1.58 | N12: 41
L13: [30-<50 kg] | M13: 2.43 | N13: 64
L14: [50-<70 kg] | M14: 2.99 | N14: 103
A41: Kommentarer

Sheet CT-Abdomen
A1: CT-skanning af abdomen - Tumor eller infektion, uden kontrast
A3: Protokoloplysninger
A4: kV (angiv begge ved dual-teknik) | E4: Antal skanfaser, udover oversigt(erne) | H4: Iterativ rekonstruktion (skriv gerne detaljer)
A5: Kontrast tracking | E5: CTDI kalibrering | H5: Snittykkelse (rekonstruktion)
A6: Aksial/Spiral | E6: Dosis-modulering (AEC) | H6: Rotationstid (s)
A7: Pitch | E7: Antal snit pr. rotation | H7: Skannet snittykkelse (mm)
A9: kV | B9: CTDIvol [mGy] | C9: DLP [mGy·cm] | D9: SSDE | E9: Højde [cm] | F9: Vægt [kg] | G9: Køn [K/M] | H9: Alder [år] | I9: Bemærkninger | L9: Referencedoser
L10: Vægt | M10: CTDIvol [mGy] | N10: DLP [mGy·cm]
L11: [15-<30kg] | M11: 2.6 | N11: 92
L12: [30-<50 kg] | M12: 3.4 | N12: 150.3
L13: [50-<70 kg] | M13: 5 | N13: 247
A41: Kommentarer

Sheet Lister (hidden)
A1: Ja | B1: Aksial | C1: M
A2: Nej | B2: Spiral | C2: K

Sheet Valgfri (2)
A1: Indsæt protokolnavn
A3: Protokoloplysninger
A4: kV (angiv begge ved dual-teknik) | E4: Antal skanfaser, udover oversigt(erne) | H4: Iterativ rekonstruktion (skriv gerne detaljer)
A5: Kontrast tracking | E5: CTDI kalibrering | H5: Snittykkelse (rekonstruktion)
A6: Aksial/Spiral | E6: Dosis-modulering (AEC) | H6: Rotationstid (s)
A7: Pitch | E7: Antal snit pr. rotation | H7: Skannet snittykkelse (mm)
A9: kV | B9: CTDIvol [mGy] | C9: DLP [mGy·cm] | D9: SSDE | E9: Højde [cm] | F9: Vægt [kg] | G9: Alder [år] | H9: Bemærkninger
A41: Kommentarer

Sheet Valgfri
A1: Indsæt protokolnavn
A3: Protokoloplysninger
A4: kV (angiv begge ved dual-teknik) | E4: Antal skanfaser, udover oversigt(erne) | H4: Iterativ rekonstruktion (skriv gerne detaljer)
A5: Kontrast tracking | E5: CTDI kalibrering | H5: Snittykkelse (rekonstruktion)
A6: Aksial/Spiral | E6: Dosis-modulering (AEC) | H6: Rotationstid (s)
A7: Pitch | E7: Antal snit pr. rotation | H7: Skannet snittykkelse (mm)
A9: kV | B9: CTDIvol [mGy] | C9: DLP [mGy·cm] | D9: SSDE | E9: Højde [cm] | F9: Vægt [kg] | G9: Køn [K/M] | H9: Alder [år] | I9: Bemærkninger
A41: Kommentarer

Sheet Data, kurver (hidden)
A1: CT Thorax | G1: CT Abdomen
C2: CTDI | D2: DLP | I2: CTDI | J2: DLP
A3: [5-<15 kg] | C3: 1.22 | D3: 25.3 | G3: [5-<15 kg]
A4: [15-<30kg] | C4: 1.58 | D4: 41.4 | G4: [15-<30kg] | I4: 2.6 | J4: 91.7
A5: [30-<50 kg] | C5: 2.43 | D5: 64.7 | G5: [30-<50 kg] | I5: 3.4 | J5: 150.3
A6: [50-<70 kg] | C6: 2.99 | D6: 103 | G6: [50-<70 kg] | I6: 5 | J6: 247
B9: k | C9: DQ2 | D9: DQ3 | H9: k | I9: DQ2 | J9: DQ3
A10: CTDI - Nordisk | B10: 0.0167 | C10: 0.93 | D10: 1.08 | G10: CTDI - Nordisk | H10: 0.02 | I10: 1.16 | J10: 1.56
A11: DLP - Nordisk | B11: 0.03 | C11: 15.2 | D11: 19.3 | G11: DLP - Nordisk | H11: 0.029 | I11: 33.5 | J11: 44.3
B16: CTDI | D16: DLP | H16: CTDI | J16: DLP
A17: w | B17: Q2 | C17: Q3 | G17: w | H17: Q2 | I17: Q3
A18: 5 | B18: =$C$10*EXP($B$10*A18) -> 1.01098925 | C18: =$D$10*EXP($B$10*A18) -> 1.174052033 | D18: =$C$11*EXP($B$11*A18) -> 17.65988049 | E18: =$D$11*EXP($B$11*A18) -> 22.42340088 | G18: 5 | H18: ='Data, kurver'!$I$10*EXP('Data, kurver'!$H$10*G18) -> 1.281998265 | I18: ='Data, kurver'!$J$10*EXP('Data, kurver'!$H$10*G18) -> 1.724066632 | J18: ='Data, kurver'!$I$11*EXP('Data, kurver'!$H$11*G18) -> 38.7273256 | K18: ='Data, kurver'!$J$11*EXP('Data, kurver'!$H$11*G18) -> 51.21255296
A19: 6 | B19: 1.028014536 | C19: 1.193823332 | D19: 18.19770392 | E19: 23.10629511 | G19: 6 | H19: ='Data, kurver'!$I$10*EXP('Data, kurver'!$H$10*G19) -> 1.307896348 | I19: ='Data, kurver'!$J$10*EXP('Data, kurver'!$H$10*G19) -> 1.758895088 | J19: ='Data, kurver'!$I$11*EXP('Data, kurver'!$H$11*G19) -> 39.86686145 | K19: ='Data, kurver'!$J$11*EXP('Data, kurver'!$H$11*G19) -> 52.71946157
A20: 7 | B20: 1.045326532 | C20: 1.213927585 | D20: 18.75190651 | E20: 23.80998656 | G20: 7 | H20: ='Data, kurver'!$I$10*EXP('Data, kurver'!$H$10*G20) -> 1.334317607 | I20: ='Data, kurver'!$J$10*EXP('Data, kurver'!$H$10*G20) -> 1.794427126 | J20: ='Data, kurver'!$I$11*EXP('Data, kurver'!$H$11*G20) -> 41.03992769 | K20: ='Data, kurver'!$J$11*EXP('Data, kurver'!$H$11*G20) -> 54.27071034
A21: 8 | B21: 1.062930065 | C21: 1.234370398 | D21: 19.32298708 | E21: 24.5351086 | G21: 8 | H21: ='Data, kurver'!$I$10*EXP('Data, kurver'!$H$10*G21) -> 1.36127261 | I21: ='Data, kurver'!$J$10*EXP('Data, kurver'!$H$10*G21) -> 1.830676959 | J21: ='Data, kurver'!$I$11*EXP('Data, kurver'!$H$11*G21) -> 42.24751092 | K21: ='Data, kurver'!$J$11*EXP('Data, kurver'!$H$11*G21) -> 55.86760399
A22: 9 | B22: 1.080830046 | C22: 1.255157473 | D22: 19.91145965 | E22: 25.2823139 | G22: 9 | H22: ='Data, kurver'!$I$10*EXP('Data, kurver'!$H$10*G22) -> 1.388772141 | I22: ='Data, kurver'!$J$10*EXP('Data, kurver'!$H$10*G22) -> 1.867659086 | J22: ='Data, kurver'!$I$11*EXP('Data, kurver'!$H$11*G22) -> 43.49062679 | K22: ='Data, kurver'!$J$11*EXP('Data, kurver'!$H$11*G22) -> 57.51148558
A23: 10 | B23: 1.099031467 | C23: 1.276294607 | D23: 20.51785388 | E23: 26.05227499 | G23: 10 | H23: ='Data, kurver'!$I$10*EXP('Data, kurver'!$H$10*G23) -> 1.416827199 | I23: ='Data, kurver'!$J$10*EXP('Data, kurver'!$H$10*G23) -> 1.905388303 | J23: ='Data, kurver'!$I$11*EXP('Data, kurver'!$H$11*G23) -> 44.77032085 | K23: ='Data, kurver'!$J$11*EXP('Data, kurver'!$H$11*G23) -> 59.20373772
A24: 11 | B24: 1.117539403 | C24: 1.297787694 | D24: 21.14271555 | E24: 26.84568488 | G24: 11 | H24: ='Data, kurver'!$I$10*EXP('Data, kurver'!$H$10*G24) -> 1.445449007 | I24: ='Data, kurver'!$J$10*EXP('Data, kurver'!$H$10*G24) -> 1.9438797 | J24: ='Data, kurver'!$I$11*EXP('Data, kurver'!$H$11*G24) -> 46.08766938 | K24: ='Data, kurver'!$J$11*EXP('Data, kurver'!$H$11*G24) -> 60.94578369
A25: 12 | B25: 1.136359018 | C25: 1.31964273 | D25: 21.7866071 | E25: 27.6632577 | G25: 12 | H25: ='Data, kurver'!$I$10*EXP('Data, kurver'!$H$10*G25) -> 1.474649014 | I25: ='Data, kurver'!$J$10*EXP('Data, kurver'!$H$10*G25) -> 1.983148675 | J25: ='Data, kurver'!$I$11*EXP('Data, kurver'!$H$11*G25) -> 47.44378037 | K25: ='Data, kurver'!$J$11*EXP('Data, kurver'!$H$11*G25) -> 62.73908866
A26: 13 | B26: 1.155495559 | C26: 1.34186581 | D26: 22.45010807 | E26: 28.50572932 | G26: 13 | H26: ='Data, kurver'!$I$10*EXP('Data, kurver'!$H$10*G26) -> 1.504438901 | I26: ='Data, kurver'!$J$10*EXP('Data, kurver'!$H$10*G26) -> 2.023210935 | J26: ='Data, kurver'!$I$11*EXP('Data, kurver'!$H$11*G26) -> 48.83979436 | K26: ='Data, kurver'!$J$11*EXP('Data, kurver'!$H$11*G26) -> 64.58516091
A27: 14 | B27: 1.174954363 | C27: 1.364463132 | D27: 23.13381565 | E27: 29.37385802 | G27: 14 | H27: ='Data, kurver'!$I$10*EXP('Data, kurver'!$H$10*G27) -> 1.534830582 | I27: ='Data, kurver'!$J$10*EXP('Data, kurver'!$H$10*G27) -> 2.064082507 | J27: ='Data, kurver'!$I$11*EXP('Data, kurver'!$H$11*G27) -> 50.27688551 | K27: ='Data, kurver'!$J$11*EXP('Data, kurver'!$H$11*G27) -> 66.48555307
A28: 15 | B28: 1.194740859 | C28: 1.387440997 | D28: 23.83834522 | E28: 30.26842518 | G28: 15 | H28: ='Data, kurver'!$I$10*EXP('Data, kurver'!$H$10*G28) -> 1.565836217 | I28: ='Data, kurver'!$J$10*EXP('Data, kurver'!$H$10*G28) -> 2.10577974 | J28: ='Data, kurver'!$I$11*EXP('Data, kurver'!$H$11*G28) -> 51.75626247 | K28: ='Data, kurver'!$J$11*EXP('Data, kurver'!$H$11*G28) -> 68.44186351
A29: 16 | B29: 1.214860563 | C29: 1.410805815 | D29: 24.56433091 | E29: 31.19023596 | G29: 16 | H29: ='Data, kurver'!$I$10*EXP('Data, kurver'!$H$10*G29) -> 1.597468207 | I29: ='Data, kurver'!$J$10*EXP('Data, kurver'!$H$10*G29) -> 2.148319312 | J29: ='Data, kurver'!$I$11*EXP('Data, kurver'!$H$11*G29) -> 53.27916951 | K29: ='Data, kurver'!$J$11*EXP('Data, kurver'!$H$11*G29) -> 70.45573759
A30: 17 | B30: 1.235319088 | C30: 1.434564102 | D30: 25.31242616 | E30: 32.14012006 | G30: 17 | H30: ='Data, kurver'!$I$10*EXP('Data, kurver'!$H$10*G30) -> 1.629739205 | I30: ='Data, kurver'!$J$10*EXP('Data, kurver'!$H$10*G30) -> 2.191718241 | J30: ='Data, kurver'!$I$11*EXP('Data, kurver'!$H$11*G30) -> 54.84688747 | K30: ='Data, kurver'!$J$11*EXP('Data, kurver'!$H$11*G30) -> 72.5288691
A31: 18 | B31: 1.256122138 | C31: 1.458722483 | D31: 26.08330431 | E31: 33.11893244 | G31: 18 | H31: ='Data, kurver'!$I$10*EXP('Data, kurver'!$H$10*G31) -> 1.662662121 | I31: ='Data, kurver'!$J$10*EXP('Data, kurver'!$H$10*G31) -> 2.235993887 | J31: ='Data, kurver'!$I$11*EXP('Data, kurver'!$H$11*G31) -> 56.46073489 | K31: ='Data, kurver'!$J$11*EXP('Data, kurver'!$H$11*G31) -> 74.66300166
A32: 19 | B32: 1.277275517 | C32: 1.483287697 | D32: 26.87765918 | E32: 34.12755409 | G32: 19 | H32: ='Data, kurver'!$I$10*EXP('Data, kurver'!$H$10*G32) -> 1.696250124 | I32: ='Data, kurver'!$J$10*EXP('Data, kurver'!$H$10*G32) -> 2.28116396 | J32: ='Data, kurver'!$I$11*EXP('Data, kurver'!$H$11*G32) -> 58.12206912 | K32: ='Data, kurver'!$J$11*EXP('Data, kurver'!$H$11*G32) -> 76.8599302
A33: 20 | B33: 1.298785124 | C33: 1.508266595 | D33: 27.69620577 | E33: 35.16689285 | G33: 20 | H33: ='Data, kurver'!$I$10*EXP('Data, kurver'!$H$10*G33) -> 1.730516649 | I33: ='Data, kurver'!$J$10*EXP('Data, kurver'!$H$10*G33) -> 2.327246528 | J33: ='Data, kurver'!$I$11*EXP('Data, kurver'!$H$11*G33) -> 59.83228743 | K33: ='Data, kurver'!$J$11*EXP('Data, kurver'!$H$11*G33) -> 79.12150248
A34: 21 | B34: 1.320656957 | C34: 1.533666143 | D34: 28.5396808 | E34: 36.23788418 | G34: 21 | H34: ='Data, kurver'!$I$10*EXP('Data, kurver'!$H$10*G34) -> 1.765475405 | I34: ='Data, kurver'!$J$10*EXP('Data, kurver'!$H$10*G34) -> 2.374260027 | J34: ='Data, kurver'!$I$11*EXP('Data, kurver'!$H$11*G34) -> 61.59282822 | K34: ='Data, kurver'!$J$11*EXP('Data, kurver'!$H$11*G34) -> 81.44962061
A35: 22 | B35: 1.342897116 | C35: 1.559493425 | D35: 29.40884348 | E35: 37.34149205 | G35: 22 | H35: ='Data, kurver'!$I$10*EXP('Data, kurver'!$H$10*G35) -> 1.801140373 | I35: ='Data, kurver'!$J$10*EXP('Data, kurver'!$H$10*G35) -> 2.422223261 | J35: ='Data, kurver'!$I$11*EXP('Data, kurver'!$H$11*G35) -> 63.40517222 | K35: ='Data, kurver'!$J$11*EXP('Data, kurver'!$H$11*G35) -> 83.84624266
A36: 23 | B36: 1.365511805 | C36: 1.585755645 | D36: 30.30447611 | E36: 38.47870979 | G36: 23 | H36: ='Data, kurver'!$I$10*EXP('Data, kurver'!$H$10*G36) -> 1.837525823 | I36: ='Data, kurver'!$J$10*EXP('Data, kurver'!$H$10*G36) -> 2.471155417 | J36: ='Data, kurver'!$I$11*EXP('Data, kurver'!$H$11*G36) -> 65.2708437 | K36: ='Data, kurver'!$J$11*EXP('Data, kurver'!$H$11*G36) -> 86.31338435
A37: 24 | B37: 1.38850733 | C37: 1.612460126 | D37: 31.2273848 | E37: 39.65056097 | G37: 24 | H37: ='Data, kurver'!$I$10*EXP('Data, kurver'!$H$10*G37) -> 1.874646307 | I37: ='Data, kurver'!$J$10*EXP('Data, kurver'!$H$10*G37) -> 2.521076067 | J37: ='Data, kurver'!$I$11*EXP('Data, kurver'!$H$11*G37) -> 67.1914118 | K37: ='Data, kurver'!$J$11*EXP('Data, kurver'!$H$11*G37) -> 88.85312068
A38: 25 | B38: 1.411890106 | C38: 1.639614316 | D38: 32.17840025 | E38: 40.85810032 | G38: 25 | H38: ='Data, kurver'!$I$10*EXP('Data, kurver'!$H$10*G38) -> 1.912516674 | I38: ='Data, kurver'!$J$10*EXP('Data, kurver'!$H$10*G38) -> 2.572005182 | J38: ='Data, kurver'!$I$11*EXP('Data, kurver'!$H$11*G38) -> 69.16849185 | K38: ='Data, kurver'!$J$11*EXP('Data, kurver'!$H$11*G38) -> 91.46758773
A39: 26 | B39: 1.435666652 | C39: 1.667225789 | D39: 33.15837844 | E39: 42.10241472 | G39: 26 | H39: ='Data, kurver'!$I$10*EXP('Data, kurver'!$H$10*G39) -> 1.951152074 | I39: ='Data, kurver'!$J$10*EXP('Data, kurver'!$H$10*G39) -> 2.623963134 | J39: ='Data, kurver'!$I$11*EXP('Data, kurver'!$H$11*G39) -> 71.20374667 | K39: ='Data, kurver'!$J$11*EXP('Data, kurver'!$H$11*G39) -> 94.15898441
A40: 27 | B40: 1.459843601 | C40: 1.695302246 | D40: 34.1682014 | E40: 43.38462414 | G40: 27 | H40: ='Data, kurver'!$I$10*EXP('Data, kurver'!$H$10*G40) -> 1.99056796 | I40: ='Data, kurver'!$J$10*EXP('Data, kurver'!$H$10*G40) -> 2.676970705 | J40: ='Data, kurver'!$I$11*EXP('Data, kurver'!$H$11*G40) -> 73.29888804 | K40: ='Data, kurver'!$J$11*EXP('Data, kurver'!$H$11*G40) -> 96.92957434
A41: 28 | B41: 1.484427695 | C41: 1.723851516 | D41: 35.20877805 | E41: 44.70588265 | G41: 28 | H41: ='Data, kurver'!$I$10*EXP('Data, kurver'!$H$10*G41) -> 2.0307801 | I41: ='Data, kurver'!$J$10*EXP('Data, kurver'!$H$10*G41) -> 2.7310491 | J41: ='Data, kurver'!$I$11*EXP('Data, kurver'!$H$11*G41) -> 75.4556781 | K41: ='Data, kurver'!$J$11*EXP('Data, kurver'!$H$11*G41) -> 99.78168775
A42: 29 | B42: 1.50942579 | C42: 1.752881563 | D42: 36.28104497 | E42: 46.06737947 | G42: 29 | H42: ='Data, kurver'!$I$10*EXP('Data, kurver'!$H$10*G42) -> 2.07180458 | I42: ='Data, kurver'!$J$10*EXP('Data, kurver'!$H$10*G42) -> 2.786219952 | J42: ='Data, kurver'!$I$11*EXP('Data, kurver'!$H$11*G42) -> 77.67593083 | K42: ='Data, kurver'!$J$11*EXP('Data, kurver'!$H$11*G42) -> 102.7177235
A43: 30 | B43: 1.534844859 | C43: 1.782400482 | D43: 37.38596729 | E43: 47.47034005 | G43: 30 | H43: ='Data, kurver'!$I$10*EXP('Data, kurver'!$H$10*G43) -> 2.113657808 | I43: ='Data, kurver'!$J$10*EXP('Data, kurver'!$H$10*G43) -> 2.842505329 | J43: ='Data, kurver'!$I$11*EXP('Data, kurver'!$H$11*G43) -> 79.96151359 | K43: ='Data, kurver'!$J$11*EXP('Data, kurver'!$H$11*G43) -> 105.7401508
A44: 31 | B44: 1.560691991 | C44: 1.812416506 | D44: 38.5245395 | E44: 48.91602713 | G44: 31 | H44: ='Data, kurver'!$I$10*EXP('Data, kurver'!$H$10*G44) -> 2.156356529 | I44: ='Data, kurver'!$J$10*EXP('Data, kurver'!$H$10*G44) -> 2.899927745 | J44: ='Data, kurver'!$I$11*EXP('Data, kurver'!$H$11*G44) -> 82.3143487 | K44: ='Data, kurver'!$J$11*EXP('Data, kurver'!$H$11*G44) -> 108.8515119
A45: 32 | B45: 1.586974395 | C45: 1.842938007 | D45: 39.6977864 | E45: 50.40574194 | G45: 32 | H45: ='Data, kurver'!$I$10*EXP('Data, kurver'!$H$10*G45) -> 2.19991782 | I45: ='Data, kurver'!$J$10*EXP('Data, kurver'!$H$10*G45) -> 2.958510172 | J45: ='Data, kurver'!$I$11*EXP('Data, kurver'!$H$11*G45) -> 84.73641503 | K45: ='Data, kurver'!$J$11*EXP('Data, kurver'!$H$11*G45) -> 112.0544235
A46: 33 | B46: 1.6136994 | C46: 1.873973497 | D46: 40.90676398 | E46: 51.94082532 | G46: 33 | H46: ='Data, kurver'!$I$10*EXP('Data, kurver'!$H$10*G46) -> 2.244359108 | I46: ='Data, kurver'!$J$10*EXP('Data, kurver'!$H$10*G46) -> 3.018276042 | J46: ='Data, kurver'!$I$11*EXP('Data, kurver'!$H$11*G46) -> 87.22974968 | K46: ='Data, kurver'!$J$11*EXP('Data, kurver'!$H$11*G46) -> 115.3515794
A47: 34 | B47: 1.64087446 | C47: 1.905531631 | D47: 42.15256041 | E47: 53.52265894 | G47: 34 | H47: ='Data, kurver'!$I$10*EXP('Data, kurver'!$H$10*G47) -> 2.289698169 | I47: ='Data, kurver'!$J$10*EXP('Data, kurver'!$H$10*G47) -> 3.079249262 | J47: ='Data, kurver'!$I$11*EXP('Data, kurver'!$H$11*G47) -> 89.79644969 | K47: ='Data, kurver'!$J$11*EXP('Data, kurver'!$H$11*G47) -> 118.7457529
A48: 35 | B48: 1.668507154 | C48: 1.937621212 | D48: 43.43629699 | E48: 55.15266658 | G48: 35 | H48: ='Data, kurver'!$I$10*EXP('Data, kurver'!$H$10*G48) -> 2.335953141 | I48: ='Data, kurver'!$J$10*EXP('Data, kurver'!$H$10*G48) -> 3.141454224 | J48: ='Data, kurver'!$I$11*EXP('Data, kurver'!$H$11*G48) -> 92.43867381 | K48: ='Data, kurver'!$J$11*EXP('Data, kurver'!$H$11*G48) -> 122.2397985
A49: 36 | B49: 1.69660519 | C49: 1.970251188 | D49: 44.75912918 | E49: 56.83231534 | G49: 36 | H49: ='Data, kurver'!$I$10*EXP('Data, kurver'!$H$10*G49) -> 2.383142524 | I49: ='Data, kurver'!$J$10*EXP('Data, kurver'!$H$10*G49) -> 3.204915809 | J49: ='Data, kurver'!$I$11*EXP('Data, kurver'!$H$11*G49) -> 95.1586443 | K49: ='Data, kurver'!$J$11*EXP('Data, kurver'!$H$11*G49) -> 125.836655
A50: 37 | B50: =$C$10*EXP($B$10*A50) -> 1.725176402 | C50: =$D$10*EXP($B$10*A50) -> 2.00343066 | D50: =$C$11*EXP($B$11*A50) -> 46.1222476 | E50: =$D$11*EXP($B$11*A50) -> 58.56311701 | G50: 37 | H50: ='Data, kurver'!$I$10*EXP('Data, kurver'!$H$10*G50) -> 2.431285197 | I50: ='Data, kurver'!$J$10*EXP('Data, kurver'!$H$10*G50) -> 3.269659403 | J50: ='Data, kurver'!$I$11*EXP('Data, kurver'!$H$11*G50) -> 97.95864882 | K50: ='Data, kurver'!$J$11*EXP('Data, kurver'!$H$11*G50) -> 129.5393475
A51: 38 | B51: 1.75422876 | C51: 2.037168882 | D51: 47.52687915 | E51: 60.34662945 | G51: 38 | H51: ='Data, kurver'!$I$10*EXP('Data, kurver'!$H$10*G51) -> 2.480400416 | I51: ='Data, kurver'!$J$10*EXP('Data, kurver'!$H$10*G51) -> 3.335710904 | J51: ='Data, kurver'!$I$11*EXP('Data, kurver'!$H$11*G51) -> 100.8410423 | K51: ='Data, kurver'!$J$11*EXP('Data, kurver'!$H$11*G51) -> 133.3509903
A52: 39 | B52: 1.783770366 | C52: 2.071475264 | D52: 48.97428811 | E52: 62.18445792 | G52: 39 | H52: ='Data, kurver'!$I$10*EXP('Data, kurver'!$H$10*G52) -> 2.530507828 | I52: ='Data, kurver'!$J$10*EXP('Data, kurver'!$H$10*G52) -> 3.403096734 | J52: ='Data, kurver'!$I$11*EXP('Data, kurver'!$H$11*G52) -> 103.8082491 | K52: ='Data, kurver'!$J$11*EXP('Data, kurver'!$H$11*G52) -> 137.2747891
A53: 40 | B53: 1.813809459 | C53: 2.106359372 | D53: 50.46577723 | E53: 64.07825661 | G53: 40 | H53: ='Data, kurver'!$I$10*EXP('Data, kurver'!$H$10*G53) -> 2.581627477 | I53: ='Data, kurver'!$J$10*EXP('Data, kurver'!$H$10*G53) -> 3.471843848 | J53: ='Data, kurver'!$I$11*EXP('Data, kurver'!$H$11*G53) -> 106.8627647 | K53: ='Data, kurver'!$J$11*EXP('Data, kurver'!$H$11*G53) -> 141.3140441
A54: 41 | B54: 1.844354418 | C54: 2.141830937 | D54: 52.00268895 | E54: 66.02973005 | G54: 41 | H54: ='Data, kurver'!$I$10*EXP('Data, kurver'!$H$10*G54) -> 2.633779812 | I54: ='Data, kurver'!$J$10*EXP('Data, kurver'!$H$10*G54) -> 3.541979747 | J54: ='Data, kurver'!$I$11*EXP('Data, kurver'!$H$11*G54) -> 110.0071583 | K54: ='Data, kurver'!$J$11*EXP('Data, kurver'!$H$11*G54) -> 145.4721526
A55: 42 | B55: 1.87541376 | C55: 2.177899851 | D55: 53.58640661 | E55: 68.04063471 | G55: 42 | H55: ='Data, kurver'!$I$10*EXP('Data, kurver'!$H$10*G55) -> 2.686985693 | I55: ='Data, kurver'!$J$10*EXP('Data, kurver'!$H$10*G55) -> 3.613532484 | J55: ='Data, kurver'!$I$11*EXP('Data, kurver'!$H$11*G55) -> 113.2440743 | K55: ='Data, kurver'!$J$11*EXP('Data, kurver'!$H$11*G55) -> 149.7526117
A56: 43 | B56: 1.906996149 | C56: 2.214576173 | D56: 55.21835565 | E56: 70.11278053 | G56: 43 | H56: ='Data, kurver'!$I$10*EXP('Data, kurver'!$H$10*G56) -> 2.741266405 | I56: ='Data, kurver'!$J$10*EXP('Data, kurver'!$H$10*G56) -> 3.686530682 | J56: ='Data, kurver'!$I$11*EXP('Data, kurver'!$H$11*G56) -> 116.5762353 | K56: ='Data, kurver'!$J$11*EXP('Data, kurver'!$H$11*G56) -> 154.1590215
A57: 44 | B57: 1.939110392 | C57: 2.251870133 | D57: 56.90000493 | E57: 72.24803258 | G57: 44 | H57: ='Data, kurver'!$I$10*EXP('Data, kurver'!$H$10*G57) -> 2.796643659 | I57: ='Data, kurver'!$J$10*EXP('Data, kurver'!$H$10*G57) -> 3.761003542 | J57: ='Data, kurver'!$I$11*EXP('Data, kurver'!$H$11*G57) -> 120.0064437 | K57: ='Data, kurver'!$J$11*EXP('Data, kurver'!$H$11*G57) -> 158.6950882
A58: 45 | B58: 1.971765446 | C58: 2.289792131 | D58: 58.63286807 | E58: 74.44831274 | G58: 45 | H58: ='Data, kurver'!$I$10*EXP('Data, kurver'!$H$10*G58) -> 2.853139609 | I58: ='Data, kurver'!$J$10*EXP('Data, kurver'!$H$10*G58) -> 3.836980853 | J58: ='Data, kurver'!$I$11*EXP('Data, kurver'!$H$11*G58) -> 123.5375846 | K58: ='Data, kurver'!$J$11*EXP('Data, kurver'!$H$11*G58) -> 163.3646269
A59: 46 | B59: 2.004970419 | C59: 2.328352745 | D59: 60.41850474 | E59: 76.71560141 | G59: 46 | H59: ='Data, kurver'!$I$10*EXP('Data, kurver'!$H$10*G59) -> 2.910776852 | I59: ='Data, kurver'!$J$10*EXP('Data, kurver'!$H$10*G59) -> 3.914493008 | J59: ='Data, kurver'!$I$11*EXP('Data, kurver'!$H$11*G59) -> 127.172628 | K59: ='Data, kurver'!$J$11*EXP('Data, kurver'!$H$11*G59) -> 168.1715647
A60: 47 | B60: 2.038734571 | C60: 2.367562728 | D60: 62.25852214 | E60: 79.0519393 | G60: 47 | H60: ='Data, kurver'!$I$10*EXP('Data, kurver'!$H$10*G60) -> 2.969578445 | I60: ='Data, kurver'!$J$10*EXP('Data, kurver'!$H$10*G60) -> 3.993571013 | J60: ='Data, kurver'!$I$11*EXP('Data, kurver'!$H$11*G60) -> 130.914631 | K60: ='Data, kurver'!$J$11*EXP('Data, kurver'!$H$11*G60) -> 173.1199448
A61: 48 | B61: 2.073067319 | C61: 2.407433016 | D61: 64.15457642 | E61: 81.45942927 | G61: 48 | H61: ='Data, kurver'!$I$10*EXP('Data, kurver'!$H$10*G61) -> 3.029567909 | I61: ='Data, kurver'!$J$10*EXP('Data, kurver'!$H$10*G61) -> 4.074246499 | J61: ='Data, kurver'!$I$11*EXP('Data, kurver'!$H$11*G61) -> 134.7667409 | K61: ='Data, kurver'!$J$11*EXP('Data, kurver'!$H$11*G61) -> 178.213929
A62: 49 | B62: 2.107978238 | C62: 2.447974728 | D62: 66.10837414 | E62: 83.94023822 | G62: 49 | H62: ='Data, kurver'!$I$10*EXP('Data, kurver'!$H$10*G62) -> 3.090769241 | I62: ='Data, kurver'!$J$10*EXP('Data, kurver'!$H$10*G62) -> 4.156551737 | J62: ='Data, kurver'!$I$11*EXP('Data, kurver'!$H$11*G62) -> 138.7321976 | K62: ='Data, kurver'!$J$11*EXP('Data, kurver'!$H$11*G62) -> 183.4578016
A63: 50 | B63: 2.143477065 | C63: 2.489199172 | D63: 68.12167387 | E63: 86.49659906 | G63: 50 | H63: ='Data, kurver'!$I$10*EXP('Data, kurver'!$H$10*G63) -> 3.153206921 | I63: ='Data, kurver'!$J$10*EXP('Data, kurver'!$H$10*G63) -> 4.240519652 | J63: ='Data, kurver'!$I$11*EXP('Data, kurver'!$H$11*G63) -> 142.8143363 | K63: ='Data, kurver'!$J$11*EXP('Data, kurver'!$H$11*G63) -> 188.855973
A64: 51 | B64: 2.1795737 | C64: 2.531117845 | D64: 70.1962877 | E64: 89.13081267 | G64: 51 | H64: ='Data, kurver'!$I$10*EXP('Data, kurver'!$H$10*G64) -> 3.216905926 | I64: ='Data, kurver'!$J$10*EXP('Data, kurver'!$H$10*G64) -> 4.326183832 | J64: ='Data, kurver'!$I$11*EXP('Data, kurver'!$H$11*G64) -> 147.0165902 | K64: ='Data, kurver'!$J$11*EXP('Data, kurver'!$H$11*G64) -> 194.4129834
A65: 52 | B65: 2.21627821 | C65: 2.573742438 | D65: 72.33408293 | E65: 91.84525003 | G65: 52 | H65: ='Data, kurver'!$I$10*EXP('Data, kurver'!$H$10*G65) -> 3.281891737 | I65: ='Data, kurver'!$J$10*EXP('Data, kurver'!$H$10*G65) -> 4.413578542 | J65: ='Data, kurver'!$I$11*EXP('Data, kurver'!$H$11*G65) -> 151.3424937 | K65: ='Data, kurver'!$J$11*EXP('Data, kurver'!$H$11*G65) -> 200.1335066
A66: 53 | B66: 2.253600833 | C66: 2.617084838 | D66: 74.53698371 | E66: 94.64235432 | G66: 53 | H66: ='Data, kurver'!$I$10*EXP('Data, kurver'!$H$10*G66) -> 3.348190348 | I66: ='Data, kurver'!$J$10*EXP('Data, kurver'!$H$10*G66) -> 4.502738743 | J66: ='Data, kurver'!$I$11*EXP('Data, kurver'!$H$11*G66) -> 155.7956852 | K66: ='Data, kurver'!$J$11*EXP('Data, kurver'!$H$11*G66) -> 206.0223539
A67: 54 | B67: 2.291551977 | C67: 2.661157134 | D67: 76.80697281 | E67: 97.52464311 | G67: 54 | H67: ='Data, kurver'!$I$10*EXP('Data, kurver'!$H$10*G67) -> 3.415828279 | I67: ='Data, kurver'!$J$10*EXP('Data, kurver'!$H$10*G67) -> 4.5937001 | J67: ='Data, kurver'!$I$11*EXP('Data, kurver'!$H$11*G67) -> 160.3799101 | K67: ='Data, kurver'!$J$11*EXP('Data, kurver'!$H$11*G67) -> 212.0844781
A68: 55 | B68: 2.330142227 | C68: 2.705971618 | D68: 79.14609337 | E68: 100.4947107 | G68: 55 | H68: ='Data, kurver'!$I$10*EXP('Data, kurver'!$H$10*G68) -> 3.484832588 | I68: ='Data, kurver'!$J$10*EXP('Data, kurver'!$H$10*G68) -> 4.686498997 | J68: ='Data, kurver'!$I$11*EXP('Data, kurver'!$H$11*G68) -> 165.0990239 | K68: ='Data, kurver'!$J$11*EXP('Data, kurver'!$H$11*G68) -> 218.3249779
A69: 56 | B69: 2.369382345 | C69: 2.751540787 | D69: 81.55645076 | E69: 103.5552302 | G69: 56 | H69: ='Data, kurver'!$I$10*EXP('Data, kurver'!$H$10*G69) -> 3.555230876 | I69: ='Data, kurver'!$J$10*EXP('Data, kurver'!$H$10*G69) -> 4.781172557 | J69: ='Data, kurver'!$I$11*EXP('Data, kurver'!$H$11*G69) -> 169.9569957 | K69: ='Data, kurver'!$J$11*EXP('Data, kurver'!$H$11*G69) -> 224.7491018
A70: 57 | B70: 2.409283275 | C70: 2.797877352 | D70: 84.04021446 | E70: 106.7089565 | G70: 57 | H70: ='Data, kurver'!$I$10*EXP('Data, kurver'!$H$10*G70) -> 3.627051304 | I70: ='Data, kurver'!$J$10*EXP('Data, kurver'!$H$10*G70) -> 4.87775865 | J70: ='Data, kurver'!$I$11*EXP('Data, kurver'!$H$11*G70) -> 174.9579114 | K70: ='Data, kurver'!$J$11*EXP('Data, kurver'!$H$11*G70) -> 231.362253
A71: 58 | B71: 2.449856147 | C71: 2.844994235 | D71: 86.59962002 | E71: 109.9587281 | G71: 58 | H71: ='Data, kurver'!$I$10*EXP('Data, kurver'!$H$10*G71) -> 3.7003226 | I71: ='Data, kurver'!$J$10*EXP('Data, kurver'!$H$10*G71) -> 4.976295911 | J71: ='Data, kurver'!$I$11*EXP('Data, kurver'!$H$11*G71) -> 180.105977 | K71: ='Data, kurver'!$J$11*EXP('Data, kurver'!$H$11*G71) -> 238.1699935
A72: 59 | B72: 2.491112274 | C72: 2.892904576 | D72: 89.23697109 | E72: 113.3074699 | G72: 59 | H72: ='Data, kurver'!$I$10*EXP('Data, kurver'!$H$10*G72) -> 3.775074075 | I72: ='Data, kurver'!$J$10*EXP('Data, kurver'!$H$10*G72) -> 5.076823757 | J72: ='Data, kurver'!$I$11*EXP('Data, kurver'!$H$11*G72) -> 185.4055224 | K72: ='Data, kurver'!$J$11*EXP('Data, kurver'!$H$11*G72) -> 245.178049
A73: 60 | B73: 2.533063164 | C73: 2.941621739 | D73: 91.95464146 | E73: 116.7581961 | G73: 60 | H73: ='Data, kurver'!$I$10*EXP('Data, kurver'!$H$10*G73) -> 3.85133563 | I73: ='Data, kurver'!$J$10*EXP('Data, kurver'!$H$10*G73) -> 5.179382399 | J73: ='Data, kurver'!$I$11*EXP('Data, kurver'!$H$11*G73) -> 190.8610047 | K73: ='Data, kurver'!$J$11*EXP('Data, kurver'!$H$11*G73) -> 252.3923136
A74: 61 | B74: 2.575720516 | C74: 2.991159309 | D74: 94.75507721 | E74: 120.3140125 | G74: 61 | H74: ='Data, kurver'!$I$10*EXP('Data, kurver'!$H$10*G74) -> 3.929137771 | I74: ='Data, kurver'!$J$10*EXP('Data, kurver'!$H$10*G74) -> 5.284012864 | J74: ='Data, kurver'!$I$11*EXP('Data, kurver'!$H$11*G74) -> 196.4770123 | K74: ='Data, kurver'!$J$11*EXP('Data, kurver'!$H$11*G74) -> 259.8188551
A75: 62 | B75: 2.619096228 | C75: 3.041531104 | D75: 97.64079893 | E75: 123.9781197 | G75: 62 | H75: ='Data, kurver'!$I$10*EXP('Data, kurver'!$H$10*G75) -> 4.008511619 | I75: ='Data, kurver'!$J$10*EXP('Data, kurver'!$H$10*G75) -> 5.390757005 | J75: ='Data, kurver'!$I$11*EXP('Data, kurver'!$H$11*G75) -> 202.2582687 | K75: ='Data, kurver'!$J$11*EXP('Data, kurver'!$H$11*G75) -> 267.4639195
A76: 63 | B76: 2.663202397 | C76: 3.09275117 | D76: 100.614404 | E76: 127.7538155 | G76: 63 | H76: ='Data, kurver'!$I$10*EXP('Data, kurver'!$H$10*G76) -> 4.089488925 | I76: ='Data, kurver'!$J$10*EXP('Data, kurver'!$H$10*G76) -> 5.49965752 | J76: ='Data, kurver'!$I$11*EXP('Data, kurver'!$H$11*G76) -> 208.2096363 | K76: ='Data, kurver'!$J$11*EXP('Data, kurver'!$H$11*G76) -> 275.3339369
A77: 64 | B77: 2.708051323 | C77: 3.144833794 | D77: 103.6785687 | E77: 131.6444985 | G77: 64 | H77: ='Data, kurver'!$I$10*EXP('Data, kurver'!$H$10*G77) -> 4.172102082 | I77: ='Data, kurver'!$J$10*EXP('Data, kurver'!$H$10*G77) -> 5.610757972 | J77: ='Data, kurver'!$I$11*EXP('Data, kurver'!$H$11*G77) -> 214.3361204 | K77: ='Data, kurver'!$J$11*EXP('Data, kurver'!$H$11*G77) -> 283.4355264
A78: 65 | B78: 2.753655515 | C78: 3.197793501 | D78: 106.8360512 | E78: 135.6536703 | G78: 65 | H78: ='Data, kurver'!$I$10*EXP('Data, kurver'!$H$10*G78) -> 4.256384134 | I78: ='Data, kurver'!$J$10*EXP('Data, kurver'!$H$10*G78) -> 5.724102801 | J78: ='Data, kurver'!$I$11*EXP('Data, kurver'!$H$11*G78) -> 220.6428738 | K78: ='Data, kurver'!$J$11*EXP('Data, kurver'!$H$11*G78) -> 291.7755018
A79: 66 | B79: 2.800027692 | C79: 3.251645062 | D79: 110.0896934 | E79: 139.7849396 | G79: 66 | H79: ='Data, kurver'!$I$10*EXP('Data, kurver'!$H$10*G79) -> 4.342368798 | I79: ='Data, kurver'!$J$10*EXP('Data, kurver'!$H$10*G79) -> 5.839737349 | J79: ='Data, kurver'!$I$11*EXP('Data, kurver'!$H$11*G79) -> 227.1352009 | K79: ='Data, kurver'!$J$11*EXP('Data, kurver'!$H$11*G79) -> 300.3608776
A80: 67 | B80: 2.847180787 | C80: 3.306403495 | D80: 113.4424237 | E80: 144.0420248 | G80: 67 | H80: ='Data, kurver'!$I$10*EXP('Data, kurver'!$H$10*G80) -> 4.430090466 | I80: ='Data, kurver'!$J$10*EXP('Data, kurver'!$H$10*G80) -> 5.957707868 | J80: ='Data, kurver'!$I$11*EXP('Data, kurver'!$H$11*G80) -> 233.8185621 | K80: ='Data, kurver'!$J$11*EXP('Data, kurver'!$H$11*G80) -> 309.1988746
A81: 68 | B81: 2.895127951 | C81: 3.362084072 | D81: 116.8972598 | E81: 148.4287575 | G81: 68 | H81: ='Data, kurver'!$I$10*EXP('Data, kurver'!$H$10*G81) -> 4.51958423 | I81: ='Data, kurver'!$J$10*EXP('Data, kurver'!$H$10*G81) -> 6.078061551 | J81: ='Data, kurver'!$I$11*EXP('Data, kurver'!$H$11*G81) -> 240.6985784 | K81: ='Data, kurver'!$J$11*EXP('Data, kurver'!$H$11*G81) -> 318.2969261
A82: 69 | B82: =$C$10*EXP($B$10*A82) -> 2.943882555 | C82: 3.418702322 | D82: 120.4573114 | E82: 152.9490862 | G82: 69 | H82: ='Data, kurver'!$I$10*EXP('Data, kurver'!$H$10*G82) -> 4.610885888 | I82: ='Data, kurver'!$J$10*EXP('Data, kurver'!$H$10*G82) -> 6.200846539 | J82: ='Data, kurver'!$I$11*EXP('Data, kurver'!$H$11*G82) -> 247.7810365 | K82: ='Data, kurver'!$J$11*EXP('Data, kurver'!$H$11*G82) -> 327.6626841
A83: 70 | B83: 2.993458198 | C83: 3.476274037 | D83: 124.1257827 | E83: 157.6070793 | G83: 70 | H83: ='Data, kurver'!$I$10*EXP('Data, kurver'!$H$10*G83) -> 4.704031962 | I83: ='Data, kurver'!$J$10*EXP('Data, kurver'!$H$10*G83) -> 6.326111948 | J83: ='Data, kurver'!$I$11*EXP('Data, kurver'!$H$11*G83) -> 255.071893 | K83: ='Data, kurver'!$J$11*EXP('Data, kurver'!$H$11*G83) -> 337.3040257
